bitfinex/quotes_ETHUSD_20251021
["timestamp","ask_amount","ask_price","bid_price","bid_amount"]
[1761029481043,0.001,3895.3,3895.2,15.2964354]
[1761029481615,0.001,3895.3,3895.2,4.20907627]
[1761029481815,0.001,3895.3,3895.2,2.56726227]
[1761029482146,0.001,3895.3,3895.2,5.86126227]
[1761029482338,0.001,3895.3,3895.2,6.30186227]
[1761029484218,0.001,3895.3,3895.2,5.86126227]
[1761029484620,0.001,3895.3,3895.2,2.56726227]
[1761029484855,0.4662,3895.3,3895.2,2.56726227]
[1761029485050,0.4662,3895.3,3895.2,5.86526227]
[1761029485426,0.001,3895.3,3895.2,5.86526227]
[1761029487569,0.001,3895.3,3895.2,6.76943689]
[1761029487967,0.001,3895.3,3895.2,7.71691689]
[1761029488172,0.001,3895.3,3895.2,7.84491689]
[1761029491271,0.001,3895.3,3895.2,14.68979602]
[1761029494177,0.001,3895.3,3895.2,14.72119602]
[1761029495159,0.001,3895.3,3895.2,14.24919602]
[1761029496005,0.001,3895.3,3895.2,7.40431689]
[1761029502865,0.001,3895.3,3895.2,6.89743689]
[1761029505369,0.001,3895.3,3895.2,3.59943689]
[1761029505571,0.001,3895.3,3895.2,8.61543689]
[1761029506500,0.001,3895.3,3895.2,7.71126227]
[1761029509069,0.001,3895.3,3895.2,12.7001414]
[1761029509281,0.001,3895.3,3895.2,6.36214227]
[1761029509480,0.001,3895.3,3895.2,13.6790214]
[1761029509700,0.001,3895.3,3895.2,13.2070214]
[1761029509911,0.001,3896.0,3895.9,3.07368099]
[1761029510209,0.001,3896.0,3895.9,5.85280099]
[1761029512405,0.001,3896.0,3895.9,6.32480099]
[1761029512769,0.001,3896.0,3895.9,5.85280099]
[1761029512975,0.001,3896.0,3895.9,7.37925725]
[1761029514010,0.001,3896.0,3895.9,7.85125725]
[1761029514376,0.001,3896.0,3895.9,8.35813725]
[1761029519100,0.001,3896.0,3895.9,8.48613725]
[1761029522619,0.001,3896.6,3896.5,3.07328574]
[1761029522821,0.001,3896.6,3896.5,13.20316487]
[1761029523020,0.001,3896.6,3896.5,13.77386487]
[1761029523434,0.001,3896.6,3896.5,13.33116487]
[1761029523598,0.001,3896.6,3896.5,6.48628574]
[1761029523794,0.001,3896.6,3896.5,7.4358333]
[1761029524195,0.001,3896.6,3896.5,3.6439533]
[1761029524399,0.245,3896.6,3896.5,5.98040574]
[1761029525327,0.001,3896.6,3896.5,5.98040574]
[1761029526097,0.001,3896.6,3896.5,6.42310574]
[1761029526946,0.001,3896.6,3896.5,6.92998574]
[1761029528143,0.001,3896.6,3896.5,6.48728574]
[1761029528304,0.001,3896.6,3896.5,8.51985121]
[1761029531842,0.001,3896.6,3896.5,8.39185121]
[1761029532046,0.001,3896.6,3896.5,8.51985121]
[1761029535315,0.001,3896.6,3896.5,8.07715121]
[1761029535748,0.001,3896.6,3896.5,8.51985121]
[1761029536732,0.001,3896.6,3896.5,14.21683202]
[1761029538521,0.001,3896.6,3896.5,15.94483202]
[1761029539523,0.001,3896.6,3896.5,10.24785121]
[1761029540252,0.001,3896.6,3896.5,10.23675121]
[1761029540843,0.001,3896.6,3896.5,9.80515121]
[1761029541247,0.001,3896.6,3896.5,10.23675121]
[1761029542259,1e-08,3897.4,3897.3,2.56587894]
[1761029542456,0.09900001,3897.4,3897.3,5.84587894]
[1761029543769,1e-08,3897.4,3897.3,5.84587894]
[1761029545761,0.099,3897.8,3897.3,5.84587894]
[1761029545762,1.38673695,3898.7,3898.6,2.56502334]
[1761029545962,1.38673695,3898.7,3898.6,11.54200415]
[1761029546262,1.38673695,3898.7,3898.6,5.84502334]
[1761029546428,1.70583695,3898.7,3898.6,5.84502334]
[1761029546851,1.38673695,3898.7,3898.6,5.84502334]
[1761029547129,1e-08,3898.7,3898.6,13.45959534]
[1761029547934,0.00100001,3898.7,3898.6,13.45959534]
[1761029548129,0.00100001,3898.7,3898.6,7.25573453]
[1761029548331,0.00100001,3898.7,3898.6,5.84502334]
[1761029548529,0.10000001,3898.7,3898.6,3.28]
[1761029548965,0.10000001,3898.7,3898.6,5.84502334]
[1761029552253,0.00100001,3898.7,3898.6,5.84502334]
[1761029555368,0.10000001,3898.7,3898.6,5.84502334]
[1761029555533,0.10000001,3898.7,3898.6,3.28]
[1761029555740,0.10000001,3898.7,3896.9,5.69698081]
[1761029555931,0.128,3898.2,3897.6,0.128]
[1761029556136,0.128,3898.2,3897.0,3.288]
[1761029556137,0.128,3898.2,3897.7,3.289]
[1761029556357,0.128,3898.2,3898.0,2.56541028]
[1761029556544,0.0998,3898.1,3898.0,2.56541028]
[1761029557666,0.0998,3898.1,3897.7,3.289]
[1761029557667,0.0998,3898.1,3897.9,2.56543785]
[1761029557965,0.0998,3898.1,3898.0,2.56541816]
[1761029558167,0.128,3898.2,3898.1,2.56535235]
[1761029558964,0.2287,3898.2,3898.1,2.56535235]
[1761029560079,0.128,3898.2,3898.1,2.56535235]
[1761029560757,0.1007,3898.2,3898.0,3.288]
[1761029560963,0.00100001,3898.7,3898.3,2.56519144]
[1761029561168,0.00100001,3898.7,3898.4,2.56513293]
[1761029561687,0.1007,3898.6,3898.4,2.56513293]
[1761029562880,0.1007,3898.6,3898.2,2.56523074]
[1761029563381,0.1007,3898.6,3898.3,2.56521237]
[1761029563581,0.1007,3898.6,3898.2,2.56528654]
[1761029563749,0.1007,3898.6,3898.0,5.85341792]
[1761029563750,0.1007,3898.6,3898.0,5.85336307]
[1761029563952,0.38580066,3898.6,3898.0,3.288]
[1761029564153,0.38580066,3898.6,3898.0,5.85340427]
[1761029564375,0.1007,3898.5,3898.0,5.85340427]
[1761029564586,0.1007,3898.5,3898.0,3.288]
[1761029564974,8.26219228,3898.4,3897.6,2.56565214]
[1761029565171,8.26219228,3898.4,3896.5,4.29637847]
[1761029565172,2.56528654,3898.2,3897.3,2.56584969]
[1761029565372,0.96629929,3898.3,3897.4,5.85378288]
[1761029565694,0.96629929,3898.3,3897.5,2.56574727]
[1761029565695,0.1015,3898.2,3897.5,2.56574727]
[1761029566007,0.1015,3898.2,3897.4,3.288]
[1761029566008,0.1811,3897.5,3897.4,3.288]
[1761029566290,0.1811,3897.5,3897.4,5.8538131]
[1761029567659,0.2834,3897.5,3897.4,3.288]
[1761029568170,0.1811,3897.5,3897.4,5.8538131]
[1761029570009,0.1844,3897.9,3897.4,3.288]
[1761029570174,0.1844,3897.9,3897.4,5.85378715]
[1761029570676,0.128,3897.8,3897.6,2.56563608]
[1761029571084,0.128,3897.8,3897.4,3.288]
[1761029571390,0.099,3897.7,3897.5,2.56573261]
[1761029571892,0.099,3897.7,3897.6,2.56568144]
[1761029572968,0.2816,3897.7,3897.4,3.288]
[1761029573386,0.2816,3897.7,3897.5,2.56569571]
[1761029573697,0.2816,3898.0,3897.6,2.56568144]
[1761029574065,0.2816,3898.0,3897.4,5.85376353]
[1761029574066,0.2816,3898.0,3897.7,2.56560932]
[1761029574772,0.2816,3898.0,3897.5,2.5657416]
[1761029574977,0.2816,3898.0,3897.5,2.56574727]
[1761029575164,0.73908304,3898.0,3897.6,2.56564051]
[1761029575388,0.73908304,3898.0,3897.4,5.85376988]
[1761029575699,0.2816,3897.9,3897.4,5.85376988]
[1761029576103,5.69698081,3897.5,3897.2,0.002]
[1761029576291,1.728,3897.4,3897.2,0.002]
[1761029576493,2.0096,3897.4,3897.2,0.002]
[1761029576797,0.2816,3897.3,3897.2,0.002]
[1761029577571,4.57547894,3897.3,3897.2,0.002]
[1761029579906,7.86347894,3897.3,3897.2,0.002]
[1761029580306,7.86247894,3897.3,3897.2,0.002]
[1761029580907,1.728,3897.3,3897.2,0.002]
[1761029581073,2.0096,3897.3,3897.2,0.002]
[1761029581497,4.57547894,3897.3,3897.2,0.002]
[1761029581705,4.84555619,3897.3,3897.2,0.002]
[1761029582982,8.26332069,3896.6,3896.5,0.002]
[1761029583332,13.27732069,3896.6,3896.5,0.002]
[1761029583486,13.98892135,3896.6,3896.5,0.002]
[1761029584313,5.4020389,3896.6,3896.5,0.002]
[1761029584487,7.78297812,3896.6,3896.5,0.002]
[1761029584817,7.68003988,3896.6,3896.5,0.002]
[1761029585019,5.014,3896.6,3896.5,0.002]
[1761029585516,1.728,3896.6,3896.5,0.002]
[1761029585719,0.77187195,3897.5,3896.5,0.002]
[1761029585919,8.68085276,3897.5,3896.5,0.002]
[1761029586109,1.728,3897.1,3896.5,0.002]
[1761029586310,0.128,3896.7,3896.5,0.002]
[1761029586511,0.128,3896.7,3896.5,2.56840134]
[1761029588814,0.128,3896.7,3896.6,2.56633988]
[1761029588988,0.128,3896.7,3896.5,2.56839131]
[1761029589435,0.128,3896.7,3896.6,2.99463988]
[1761029589739,1.728,3897.2,3896.8,2.56620764]
[1761029589740,0.128,3896.9,3896.8,2.56620764]
[1761029590727,0.128,3896.9,3896.8,2.56620817]
[1761029590934,0.128,3896.9,3896.5,0.58039217]
[1761029591101,0.128,3896.9,3896.7,2.56627089]
[1761029591301,0.128,3896.9,3896.6,2.56632743]
[1761029591899,0.128,3896.9,3896.7,2.56625512]
[1761029592101,0.128,3896.9,3896.5,0.002]
[1761029592408,0.2909,3896.9,3896.5,0.002]
[1761029592595,0.3931,3896.9,3896.5,0.002]
[1761029592796,0.2909,3896.9,3896.5,0.002]
[1761029592996,0.128,3896.7,3896.5,0.002]
[1761029593830,0.128,3896.7,3896.5,2.99664023]
[1761029594017,0.128,3896.7,3896.5,3.55300223]
[1761029595431,0.128,3896.7,3896.6,2.56633988]
[1761029595636,0.128,3896.7,3896.5,0.002]
[1761029596137,0.1661,3896.8,3896.5,0.002]
[1761029596333,0.2651,3896.8,3896.5,0.002]
[1761029598235,0.1661,3896.8,3896.5,0.002]
[1761029598931,1.728,3897.0,3896.5,0.002]
[1761029599133,2.19765411,3897.0,3896.5,0.002]
[1761029600441,2.46105411,3897.0,3896.5,0.002]
[1761029600741,2.19765411,3897.0,3896.5,0.002]
[1761029601239,0.46965411,3897.0,3896.5,2.56840017]
[1761029601438,2.19765411,3897.0,3896.5,0.002]
[1761029603206,0.001,3897.2,3896.6,3.7468]
[1761029603444,0.001,3897.2,3897.1,2.56601062]
[1761029603737,0.001,3897.2,3896.6,3.282]
[1761029603938,0.099,3897.1,3896.6,3.282]
[1761029604238,0.099,3897.1,3896.6,5.8483212]
[1761029604412,0.001,3897.2,3896.6,5.8483212]
[1761029604611,0.001,3897.2,3896.7,2.56623778]
[1761029604838,0.001,3897.2,3896.6,3.282]
[1761029605043,0.001,3897.2,3896.8,2.56620488]
[1761029605857,0.001,3897.2,3896.8,0.4648]
[1761029606064,0.001,3897.2,3897.0,2.56603255]
[1761029606358,0.001,3897.2,3896.9,2.56612232]
[1761029606724,0.001,3897.2,3896.7,3.03107402]
[1761029606925,0.001,3897.2,3897.1,2.56601062]
[1761029607127,0.001,3897.2,3897.1,4.29401062]
[1761029607552,0.001,3897.2,3897.1,4.75881062]
[1761029608166,0.001,3897.2,3897.1,3.03081062]
[1761029608664,0.001,3897.2,3897.1,3.26181062]
[1761029608867,0.40243373,3898.3,3898.2,2.56528654]
[1761029609165,0.1661,3900.0,3898.2,2.56528654]
[1761029609166,0.1843,3898.9,3898.6,2.56502334]
[1761029609527,0.1843,3898.9,3898.6,5.86002334]
[1761029609861,0.099,3899.2,3898.6,5.86002334]
[1761029610171,0.0999,3899.5,3898.6,5.86002334]
[1761029610482,0.0999,3899.5,3898.6,6.32482334]
[1761029611333,0.0999,3899.7,3898.6,6.32482334]
[1761029612364,1.8279,3899.7,3898.6,7.21381974]
[1761029612733,2.56430491,3899.7,3898.6,6.74901974]
[1761029612934,0.0999,3899.4,3898.6,6.74901974]
[1761029613677,0.0999,3899.4,3898.6,7.17741974]
[1761029614674,0.0999,3899.4,3898.6,6.74901974]
[1761029614984,0.2842,3898.9,3898.6,3.295]
[1761029615156,0.2842,3898.9,3898.6,5.86002334]
[1761029615359,0.13530001,3898.9,3898.6,3.295]
[1761029615748,0.13530001,3898.9,3898.7,2.56490342]
[1761029616148,0.13530001,3898.9,3898.8,2.56489176]
[1761029616860,0.13530001,3898.9,3898.7,2.56495489]
[1761029617091,0.13530001,3898.9,3898.8,2.56489176]
[1761029617556,1.728,3899.5,3898.8,2.56489176]
[1761029617770,1.7785,3899.5,3898.8,2.56489176]
[1761029618167,0.0515,3899.1,3898.4,2.56511792]
[1761029618374,0.1353,3898.9,3898.6,2.56497161]
[1761029618590,0.1353,3898.9,3898.7,2.56494393]
[1761029619156,0.2633,3898.9,3898.6,2.56501243]
[1761029619462,0.3146,3898.9,3898.6,2.56501243]
[1761029619780,0.3146,3898.9,3898.7,2.56493263]
[1761029620282,0.2633,3898.9,3898.7,2.56494454]
[1761029621084,0.3146,3898.9,3898.6,2.5650155]
[1761029621652,0.3146,3898.9,3898.7,2.56495548]
[1761029621853,0.3146,3898.9,3898.4,2.56515034]
[1761029622085,0.3146,3898.9,3898.7,2.56494099]
[1761029622264,0.3146,3898.9,3898.6,2.56501124]
[1761029622458,0.3146,3898.9,3898.4,2.56513412]
[1761029622665,0.3146,3898.9,3898.3,3.291]
[1761029623062,0.2633,3898.9,3898.7,2.56495409]
[1761029623767,0.128,3898.9,3898.8,2.56489176]
[1761029626660,0.001,3899.1,3898.8,0.84179034]
[1761029626855,0.001,3899.1,3898.9,2.56477836]
[1761029627187,0.001,3899.1,3899.0,2.56476019]
[1761029627758,0.001,3899.1,3898.6,3.7164]
[1761029628091,0.001,3899.1,3898.6,3.288]
[1761029628292,0.001,3899.1,3898.6,5.85301632]
[1761029628492,0.001,3899.1,3898.9,2.56480899]
[1761029628862,0.001,3899.1,3899.0,2.56476019]
[1761029631300,0.001,3899.1,3898.7,0.4284]
[1761029631301,0.001,3899.1,3898.7,2.56495689]
[1761029631503,0.001,3899.1,3898.6,3.288]
[1761029631683,0.001,3899.1,3898.7,2.56495754]
[1761029632004,0.001,3899.1,3898.8,2.56488923]
[1761029632373,0.001,3899.1,3898.9,2.56481649]
[1761029632585,0.001,3899.1,3899.0,2.56476019]
[1761029633104,0.001,3899.1,3898.8,2.56484066]
[1761029633816,0.001,3899.1,3898.7,2.56495754]
[1761029634117,0.001,3899.1,3898.8,2.56489176]
[1761029635306,0.001,3899.1,3898.9,2.56481067]
[1761029635779,0.001,3899.1,3898.7,2.56489229]
[1761029635983,0.001,3899.1,3898.8,2.56485765]
[1761029637710,0.001,3899.1,3898.9,2.56481287]
[1761029638110,0.128,3898.9,3898.6,5.8549591]
[1761029638283,0.3133,3898.9,3898.6,3.29]
[1761029638483,0.3133,3898.9,3898.6,5.85500455]
[1761029638910,0.1853,3898.9,3898.6,5.85500455]
[1761029639106,0.128,3898.7,3898.6,5.85500455]
[1761029640527,0.128,3898.7,3898.6,0.002]
[1761029640735,0.1785,3898.7,3898.6,0.002]
[1761029641514,0.128,3898.7,3898.6,0.002]
[1761029642312,0.1785,3898.7,3898.6,0.002]
[1761029642516,0.63925026,3898.7,3898.6,0.002]
[1761029643216,0.1785,3898.7,3898.6,0.002]
[1761029643831,0.128,3898.7,3898.6,0.002]
[1761029644216,0.1785,3898.7,3898.6,0.002]
[1761029649036,4.47145754,3898.7,3898.6,0.002]
[1761029649213,1.856,3898.7,3898.6,0.002]
[1761029649429,2.43332,3898.7,3898.6,0.002]
[1761029649652,2.38282,3898.7,3898.6,0.002]
[1761029651140,2.43332,3898.7,3898.6,0.002]
[1761029651642,2.38282,3898.7,3898.6,0.002]
[1761029652358,4.99827754,3898.7,3898.6,0.002]
[1761029652661,2.43332,3898.7,3898.6,0.002]
[1761029653853,4.99827754,3898.7,3898.6,0.002]
[1761029654157,2.43332,3898.7,3898.6,0.002]
[1761029656146,4.99827754,3898.7,3898.6,0.002]
[1761029656449,2.43332,3898.7,3898.6,0.002]
[1761029657778,2.38282,3898.7,3898.6,0.002]
[1761029658078,4.94777754,3898.7,3898.6,0.002]
[1761029658270,4.99827754,3898.7,3898.6,0.002]
[1761029658580,2.43332,3898.7,3898.6,0.002]
[1761029659076,4.99827754,3898.7,3898.6,0.002]
[1761029659969,2.43332,3898.7,3898.6,0.002]
[1761029660364,2.38282,3898.7,3898.6,0.002]
[1761029660578,4.94777754,3898.7,3898.6,0.002]
[1761029661269,5.04677754,3898.7,3898.6,0.002]
[1761029661579,2.48182,3898.7,3898.6,0.002]
[1761029661779,5.04677754,3898.7,3898.6,0.002]
[1761029662672,4.94777754,3898.7,3898.6,0.002]
[1761029663277,2.38282,3898.7,3898.6,0.002]
[1761029664082,5.04677754,3898.7,3898.6,0.002]
[1761029670496,5.55365754,3898.7,3898.6,0.002]
[1761029671306,2.56515493,3898.4,3898.3,0.002]
[1761029671474,14.31870589,3898.4,3898.3,0.002]
[1761029671806,14.41770589,3898.4,3898.3,0.002]
[1761029672105,14.92458589,3898.4,3898.3,0.002]
[1761029672470,15.02749553,3898.4,3898.3,0.002]
[1761029673162,15.42998069,3898.4,3898.3,0.002]
[1761029673368,2.23488,3898.1,3897.9,0.002]
[1761029673671,19.99404742,3898.0,3897.9,0.002]
[1761029674178,2.56628907,3896.7,3895.8,2.56880957]
[1761029674375,8.26229473,3896.7,3896.2,0.4731]
[1761029674569,2.56633988,3896.6,3896.2,0.4731]
[1761029674965,3.275,3896.9,3896.5,0.4751]
[1761029675166,5.69596463,3897.3,3896.5,0.4751]
[1761029675421,3.275,3897.2,3896.5,3.04150257]
[1761029675737,5.84094902,3897.2,3896.5,3.04150257]
[1761029676009,3.275,3897.2,3896.6,0.4731]
[1761029676375,5.8409552,3897.2,3896.6,0.4731]
[1761029676566,2.56603006,3897.1,3896.6,0.4731]
[1761029677002,2.56607805,3897.0,3896.6,0.4731]
[1761029677205,8.26204268,3897.0,3896.6,0.4731]
[1761029677424,5.69596463,3897.0,3896.6,0.4731]
[1761029677630,3.275,3896.9,3896.6,0.4731]
[1761029680633,3.275,3896.9,3896.5,0.002]
[1761029680634,5.003,3896.9,3896.5,0.002]
[1761029680829,5.003,3896.9,3896.6,0.4731]
[1761029688720,0.128,3896.6,3896.5,0.002]
[1761029689316,0.65482,3896.6,3896.5,0.002]
[1761029689722,8.22415988,3896.6,3896.5,0.002]
[1761029690436,5.65782,3896.6,3896.5,0.002]
[1761029690838,2.38282,3896.6,3896.5,0.002]
[1761029691144,5.131,3896.6,3896.5,0.002]
[1761029693848,5.131,3896.6,3896.5,0.4751]
[1761029695933,5.131,3896.6,3896.5,0.002]
[1761029701571,7.69733988,3896.6,3896.5,0.002]
[1761029701729,7.79823988,3896.6,3896.5,0.002]
[1761029701935,8.94534434,3896.6,3896.5,0.002]
[1761029702567,8.84444434,3896.6,3896.5,0.002]
[1761029702744,8.94534434,3896.6,3896.5,0.002]
[1761029703462,9.45222434,3896.6,3896.5,0.002]
[1761029704333,9.55516152,3896.6,3896.5,0.002]
[1761029705330,9.45426152,3896.6,3896.5,0.002]
[1761029706136,5.67238152,3896.6,3896.5,0.002]
[1761029706340,7.69733988,3896.6,3896.5,0.4482]
[1761029706950,7.69733988,3896.6,3896.5,0.002]
[1761029709552,1.728,3896.6,3896.5,0.002]
[1761029710471,4.39333988,3896.6,3896.5,0.002]
[1761029711489,1.728,3896.6,3896.5,0.002]
[1761029711862,4.29433988,3896.6,3896.5,0.002]
[1761029712458,4.90021988,3896.6,3896.5,0.002]
[1761029713175,2.23488,3896.6,3896.5,0.002]
[1761029713478,4.90415706,3896.6,3896.5,0.002]
[1761029716484,5.00315706,3896.6,3896.5,0.002]
[1761029716685,4.90021988,3896.6,3896.5,0.002]
[1761029717366,10.59618451,3896.6,3896.5,0.002]
[1761029717571,3.07348335,3896.2,3896.1,0.002]
[1761029717872,13.77244798,3896.2,3896.1,0.002]
[1761029718072,13.87144798,3896.2,3896.1,0.002]
[1761029718394,13.97441431,3896.2,3896.1,0.002]
[1761029718812,15.02603681,3896.2,3896.1,0.002]
[1761029718965,15.42866451,3896.2,3896.1,0.002]
[1761029719164,15.52766451,3896.2,3896.1,0.002]
[1761029720100,2.1306277,3896.2,3896.1,0.6853]
[1761029720881,1.728,3896.2,3896.1,0.6853]
[1761029722101,3.275,3896.3,3896.1,0.6853]
[1761029722271,0.59444191,3896.2,3896.1,0.002]
[1761029722481,3.66792526,3896.2,3896.1,0.002]
[1761029722712,3.76692526,3896.2,3896.1,0.002]
[1761029723190,3.66792526,3896.2,3896.1,0.002]
[1761029724212,5.39592526,3896.2,3896.1,0.002]
[1761029724813,5.49492526,3896.2,3896.1,0.002]
[1761029725014,5.39592526,3896.2,3896.1,0.002]
[1761029725402,5.49492526,3896.2,3896.1,0.002]
[1761029727317,5.39592526,3896.2,3896.1,0.002]
[1761029727517,5.49492526,3896.2,3896.1,0.002]
[1761029727915,5.5978794,3896.2,3896.1,0.002]
[1761029729021,5.4988794,3896.2,3896.1,0.002]
[1761029729319,5.5978794,3896.2,3896.1,0.002]
[1761029729817,2.82803038,3896.2,3896.1,0.002]
[1761029730032,15.02077895,3896.2,3896.1,0.002]
[1761029730223,15.52765895,3896.2,3896.1,0.002]
[1761029731419,15.93027955,3896.2,3896.1,0.002]
[1761029731616,15.52764522,3896.2,3896.1,0.002]
[1761029732629,1.83095414,3896.2,3896.1,0.002]
[1761029732801,7.67255749,3896.2,3896.1,0.002]
[1761029733005,8.69656059,3896.2,3896.1,0.002]
[1761029733414,0.10295414,3896.2,3896.1,0.661]
[1761029733648,0.10295414,3896.2,3896.1,0.4354]
[1761029734136,1.729,3896.5,3896.1,0.4354]
[1761029734542,1.729,3896.5,3896.1,0.002]
[1761029734750,0.001,3896.5,3896.1,0.002]
[1761029734959,4.29542405,3896.5,3896.1,0.4354]
[1761029735137,1.729,3896.5,3896.1,0.4354]
[1761029735337,1.728,3896.3,3896.1,0.4354]
[1761029736313,0.001,3896.5,3896.2,2.56654791]
[1761029736714,0.001,3896.5,3896.3,2.99992848]
[1761029737257,0.001,3896.5,3896.4,0.4334]
[1761029741810,1.729,3896.5,3896.4,0.4334]
[1761029743178,0.128,3896.4,3896.1,0.4354]
[1761029743384,1.729,3896.5,3896.1,0.4354]
[1761029743685,1.729,3896.5,3896.1,0.002]
[1761029743885,1.729,3896.5,3896.1,0.4354]
[1761029744410,1.729,3896.5,3896.1,0.002]
[1761029744591,1.729,3896.5,3896.2,0.4334]
[1761029745503,0.001,3896.5,3896.2,0.4334]
[1761029746803,0.001,3896.5,3896.1,0.002]
[1761029747011,0.001,3896.5,3896.2,0.4334]
[1761029750209,12.68805011,3896.5,3896.1,0.002]
[1761029750383,1.728,3896.4,3896.1,0.661]
[1761029750697,4.39745457,3896.4,3896.1,0.661]
[1761029750896,2.566544,3896.3,3896.1,0.002]
[1761029751289,1.83094036,3896.4,3896.1,0.002]
[1761029751485,1.83094036,3896.4,3896.1,0.661]
[1761029751686,4.3974162,3896.4,3896.1,0.661]
[1761029752013,5.38553519,3896.4,3896.1,0.661]
[1761029752428,2.81905935,3896.4,3896.1,0.002]
[1761029752711,5.38555251,3896.4,3896.1,0.002]
[1761029753322,5.38555251,3896.4,3896.1,0.4354]
[1761029753323,2.81905935,3896.4,3896.1,0.4354]
[1761029754115,2.81905935,3896.4,3896.1,0.002]
[1761029754422,3.05793207,3896.3,3896.1,0.002]
[1761029754610,0.49134698,3896.3,3896.1,0.002]
[1761029754805,2.56660335,3896.2,3896.1,0.002]
[1761029755011,3.05790702,3896.3,3896.1,0.4354]
[1761029755310,0.49134698,3896.3,3896.1,0.002]
[1761029755511,0.80608225,3896.2,3896.1,0.002]
[1761029755913,5.80808225,3896.2,3896.1,0.002]
[1761029758026,8.3746856,3896.2,3896.1,0.002]
[1761029758193,5.80808225,3896.2,3896.1,0.002]
[1761029758402,5.80808225,3896.2,3896.1,0.661]
[1761029758993,5.80808225,3896.2,3896.1,0.2276]
[1761029759713,5.80808225,3896.2,3896.1,0.002]
[1761029761629,8.3746856,3896.2,3896.1,0.002]
[1761029761930,8.4736856,3896.2,3896.1,0.002]
[1761029762129,8.3746856,3896.2,3896.1,0.002]
[1761029762334,8.9805656,3896.2,3896.1,0.002]
[1761029763706,8.9805656,3896.2,3895.4,0.002]
[1761029763707,2.56706456,3895.5,3895.4,0.002]
[1761029763907,14.41565169,3895.5,3895.4,0.002]
[1761029764117,14.51465169,3895.5,3895.4,0.002]
[1761029764504,14.61762915,3895.5,3895.4,0.002]
[1761029766202,15.12450915,3895.5,3895.4,0.002]
[1761029766407,15.9305914,3895.5,3895.4,0.002]
[1761029772631,16.33339526,3895.5,3895.4,0.002]
[1761029775050,15.9305914,3895.5,3895.4,0.002]
[1761029775415,2.56713046,3895.4,3895.3,0.002]
[1761029775621,4.90101046,3895.4,3895.3,0.002]
[1761029775817,4.80220818,3895.1,3895.0,0.002]
[1761029776018,14.92379531,3895.1,3895.0,0.002]
[1761029776237,15.02279531,3895.1,3895.0,0.002]
[1761029776735,15.02279531,3895.1,3894.4,0.002]
[1761029776736,0.1358,3894.9,3894.4,0.002]
[1761029776958,11.64905898,3894.7,3894.4,0.002]
[1761029777258,4.93053778,3894.6,3894.4,0.002]
[1761029777436,5.02993778,3894.6,3894.4,0.002]
[1761029777762,2.23488,3894.3,3894.0,0.002]
[1761029777946,14.92438865,3894.2,3894.0,0.002]
[1761029778324,11.64938865,3894.2,3894.0,0.002]
[1761029778548,15.80011273,3894.2,3894.0,0.002]
[1761029778757,17.1016097,3894.2,3894.0,0.002]
[1761029778976,20.3766097,3894.2,3894.0,0.002]
[1761029779258,20.4796288,3894.2,3894.0,0.002]
[1761029779824,20.3802288,3894.2,3894.0,0.002]
[1761029780241,20.4796288,3894.2,3894.0,0.002]
[1761029781668,2.56865491,3893.1,3892.8,0.4322]
[1761029781870,1.728,3892.9,3892.8,0.4322]
[1761029782071,7.43954205,3892.9,3892.8,0.4322]
[1761029782869,10.0083211,3892.9,3892.8,0.4322]
[1761029783256,10.0083211,3892.9,3892.4,0.4322]
[1761029783455,1.728,3892.7,3892.1,0.4322]
[1761029783861,1.728,3892.7,3892.1,3.00149951]
[1761029784963,1.728,3892.7,3892.2,0.4322]
[1761029785361,1.728,3892.7,3892.2,3.00143417]
[1761029785676,3.275,3893.1,3892.2,0.9411035]
[1761029785881,3.275,3893.1,3892.3,0.4322]
[1761029786176,3.275,3893.1,3892.6,2.56892518]
[1761029786677,3.275,3893.1,3892.7,0.4322]
[1761029786878,3.275,3893.2,3892.7,0.4322]
[1761029787345,5.003,3893.2,3893.1,0.2325]
[1761029787845,5.003,3893.2,3893.1,0.6647]
[1761029791977,5.80908225,3893.2,3893.1,0.6647]
[1761029792183,8.37766336,3893.2,3893.1,0.6647]
[1761029792491,8.37766336,3893.2,3893.1,0.2325]
[1761029792669,5.80908225,3893.2,3893.1,0.2325]
[1761029792872,5.80908225,3893.2,3893.1,0.7065]
[1761029793463,0.128,3893.1,3892.6,2.5689725]
[1761029793666,5.003,3893.2,3893.1,0.2303]
[1761029794114,5.003,3893.2,3893.1,0.7043]
[1761029796418,7.57158111,3893.2,3893.1,0.2303]
[1761029796592,0.128,3893.1,3892.8,0.474]
[1761029796777,1.728,3892.9,3892.4,2.56908901]
[1761029796978,0.128,3892.4,3892.3,2.56915764]
[1761029797617,0.128,3892.4,3892.3,3.04315764]
[1761029798202,0.128,3892.4,3892.3,0.474]
[1761029798582,0.128,3892.4,3892.3,3.04317503]
[1761029799605,0.128,3892.4,3892.3,3.62798222]
[1761029800017,0.128,3892.4,3892.3,3.62998222]
[1761029800611,0.128,3892.4,3892.3,3.04517503]
[1761029804229,0.001,3893.9,3892.3,0.50169175]
[1761029804403,3.275,3893.8,3893.1,2.56858944]
[1761029804595,0.128,3892.9,3892.6,3.275]
[1761029804795,0.128,3892.9,3892.7,0.474]
[1761029804996,0.128,3892.9,3892.8,2.56884504]
[1761029805530,0.128,3892.9,3892.8,3.04284504]
[1761029813105,0.128,3892.9,3892.6,3.275]